fUSD/lending_fUSD_20250716
["ID","MTS","AMOUNT","RATE_DAILY","PERIOD"]
[372402762,1752629443523,-4233.31,0.00021265,2]
[372402763,1752629443533,-1026.15853021,0.00021279,5]
[372402764,1752629443542,-151.0,0.00021283,2]
[372402765,1752629443552,-152.0,0.00021294,6]
[372402766,1752629443561,-305.827291,0.00021294,2]
[372402767,1752629443571,-305.827291,0.00021294,2]
[372402768,1752629443581,-151.0,0.00021294,2]
[372402769,1752629443590,-4237.99195849,0.00021295,2]
[372402770,1752629443599,-150.0,0.00021306,2]
[372402771,1752629443608,-543.975205,0.00021306,2]
[372402772,1752629443617,-543.975205,0.00021306,2]
[372402773,1752629443626,-151.0,0.00021306,2]
[372402774,1752629443635,-151.0,0.00021306,2]
[372402775,1752629443644,-150.0,0.00021316,2]
[372402776,1752629443654,-150.0,0.00021343,2]
[372402777,1752629443663,-150.0,0.00021359,2]
[372402778,1752629443672,-169.7,0.00021374,2]
[372402779,1752629443681,-346.28085483,0.00021392,2]
[372402780,1752629443690,-2000.0,0.000214,2]
[372402781,1752629443700,-5000.0,0.000214,2]
[372402782,1752629443709,-151.0,0.00021405,2]
[372402783,1752629443718,-151.0,0.00021405,2]
[372402784,1752629443727,-151.0,0.00021405,2]
[372402785,1752629443737,-151.0,0.00021405,2]
[372402786,1752629443747,-1026.15853021,0.00021417,5]
[372402787,1752629443756,-150.0,0.0002142,2]
[372402788,1752629443766,-191.09293056,0.00021423,2]
[372402789,1752629443775,-4237.99195849,0.00021427,2]
[372402790,1752629443784,-426.0,0.00021452,2]
[372402791,1752629443794,-598.0,0.00021452,2]
[372402792,1752629443803,-500.0,0.00021452,2]
[372402793,1752629443813,-500.0,0.00021452,2]
[372402794,1752629443822,-500.0,0.00021452,2]
[372402795,1752629443831,-151.0,0.00021452,2]
[372402796,1752629443841,-151.0,0.00021452,2]
[372402797,1752629443851,-151.0,0.00021452,2]
[372402798,1752629443860,-152.791151,0.00021452,2]
[372402799,1752629443871,-543.975205,0.00021452,2]
[372402800,1752629443880,-543.975205,0.00021452,2]
[372402801,1752629443890,-151.0,0.00021452,2]
[372402802,1752629443899,-151.0,0.00021452,2]
[372402803,1752629443911,-151.0,0.00021452,2]
[372402804,1752629443920,-151.0,0.00021452,2]
[372402805,1752629443930,-268.045847,0.00021452,2]
[372402806,1752629443940,-151.0,0.00021452,2]
[372402807,1752629443949,-186.518114,0.00021452,2]
[372402808,1752629443959,-305.827291,0.00021452,2]
[372402809,1752629443968,-1208.091328,0.00021452,2]
[372402810,1752629443978,-305.827291,0.00021452,2]
[372402811,1752629443987,-1208.091328,0.00021452,2]
[372402812,1752629443996,-270.290148,0.00021452,2]
[372402813,1752629444006,-151.0,0.00021452,2]
[372402814,1752629444015,-151.0,0.00021452,2]
[372402815,1752629444025,-151.0,0.00021452,2]
[372402816,1752629444034,-151.0,0.00021452,2]
[372402817,1752629444044,-152.0,0.00021455,7]
[372402818,1752629444054,-543.975205,0.00021468,2]
[372402819,1752629444063,-543.975203,0.00021468,2]
[372402820,1752629444073,-151.0,0.00021468,2]
[372402821,1752629444082,-273.56,0.00021468,2]
[372402822,1752629444091,-4233.31,0.00021468,2]
[372402823,1752629444100,-150.0,0.00021472,2]
[372402824,1752629444110,-151.0,0.00021492,2]
[372402825,1752629444120,-305.827291,0.00021492,2]
[372402826,1752629444129,-305.827286,0.00021492,2]
[372402827,1752629444139,-151.0,0.00021492,2]
[372402828,1752629444147,-177.27539231,0.00021492,2]
[372402829,1752629444158,-1000.0,0.000215,2]
[372402830,1752629444167,-500.0,0.00021525,2]
[372402831,1752629444177,-766.0,0.00021525,2]
[372402832,1752629444186,-500.0,0.00021525,2]
[372402833,1752629444195,-500.0,0.00021525,2]
[372402834,1752629444205,-150.0,0.00021525,2]
[372402835,1752629444215,-6338.0,0.00021525,2]
[372402836,1752629444224,-813.0,0.00021525,2]
[372402837,1752629444234,-500.0,0.00021525,2]
[372402838,1752629444244,-500.0,0.00021525,2]
[372402839,1752629444253,-302.12858549,0.00021525,2]
[372402840,1752629444263,-501.52977825,0.00021525,2]
[372402841,1752629444273,-696.0,0.00021525,2]
[372402842,1752629444282,-260.0,0.00021525,2]
[372402843,1752629444292,-564.0,0.00021525,2]
[372402844,1752629444302,-500.0,0.00021525,2]
[372402845,1752629444313,-1026.15853021,0.00021555,5]
[372402846,1752629444323,-468.78947135,0.00021559,2]
[372402847,1752629444333,-4237.99195849,0.00021559,2]
[372402848,1752629444343,-3000.0,0.00021602,7]
[372402849,1752629444354,-171.73,0.0002161,2]
[372402850,1752629444364,-151.0,0.00021614,2]
[372402851,1752629444375,-152.0,0.00021616,8]
[372402852,1752629444385,-346.2808548,0.00021618,2]
[372402853,1752629444395,-150.0,0.00021633,2]
[372402854,1752629444405,-4233.31,0.00021672,2]
[372402855,1752629444415,-151.0,0.00021672,2]
[372402856,1752629444424,-474.287,0.00021684,2]
[372402857,1752629444434,-151.0,0.00021684,2]
[372402858,1752629444444,-151.0,0.00021684,2]
[372402859,1752629444453,-151.0,0.00021684,2]
[372402860,1752629444462,-1208.091328,0.00021684,2]
[372402861,1752629444472,-1208.091328,0.00021684,2]
[372402862,1752629444482,-151.0,0.00021684,2]
[372402863,1752629444492,-151.0,0.00021684,2]
[372402864,1752629444501,-468.78947135,0.0002169,2]
[372402865,1752629444510,-4237.99195849,0.0002169,2]
[372402866,1752629444520,-1026.15853021,0.00021693,5]
[372402867,1752629444529,-1000.0,0.00021693,2]
[372402868,1752629444538,-2226.13669557,0.00021717,2]
[372402869,1752629444548,-151.0,0.00021717,2]
[372402870,1752629444557,-151.0,0.00021717,2]
[372402871,1752629444567,-426.0,0.00021726,2]
[372402872,1752629444576,-598.0,0.00021726,2]
[372402873,1752629444585,-500.0,0.00021726,2]
[372402874,1752629444595,-500.0,0.00021726,2]
[372402875,1752629444604,-500.0,0.00021726,2]
[372402876,1752629444614,-150.0,0.00021727,2]
[372402877,1752629444624,-169.7,0.00021728,2]
[372402878,1752629444634,-150.0,0.00021746,2]
[372402879,1752629444643,-150.0,0.00021765,2]
[372402880,1752629444653,-150.0,0.00021771,2]
[372402881,1752629444662,-152.0,0.00021777,9]
[372402882,1752629444672,-3350.0,0.00021797,2]
[372402883,1752629444681,-21351.0,0.00021797,2]
[372402884,1752629444690,-1267.0,0.00021797,2]
[372402885,1752629444700,-282.55152583,0.00021799,2]
[372402886,1752629444710,-766.0,0.00021799,2]
[372402887,1752629444721,-500.0,0.00021799,2]
[372402888,1752629444732,-203.61297875,0.00021799,2]
[372402889,1752629444741,-150.0,0.00021799,2]
[372402890,1752629444750,-6338.0,0.00021799,2]
[372402891,1752629444760,-813.0,0.00021799,2]
[372402892,1752629444769,-500.0,0.00021799,2]
[372402893,1752629444778,-500.0,0.00021799,2]
[372402894,1752629444787,-696.0,0.00021799,2]
[372402895,1752629444797,-312.0,0.00021799,2]
[372402896,1752629444806,-564.0,0.00021799,2]
[372402897,1752629444816,-500.0,0.00021799,2]
[372402898,1752629444825,-156.41669193,0.000218,2]
[372402899,1752629444834,-170.0,0.00021802,2]
[372402900,1752629444844,-453.9624021,0.00021803,2]
[372402901,1752629444853,-1042.28397275,0.00021814,2]
[372402902,1752629444863,-151.0,0.0002182,2]
[372402903,1752629444873,-468.78947135,0.00021822,2]
[372402904,1752629444882,-4237.99195849,0.00021822,2]
[372402905,1752629444891,-150.0,0.00021827,2]
[372402906,1752629444901,-1026.15853021,0.00021831,6]
[372402907,1752629444911,-150.0,0.00021834,2]
[372402908,1752629444921,-151.0,0.00021844,2]
[372402909,1752629444930,-346.2808548,0.00021844,2]
[372402910,1752629444939,-838.53403088,0.0002185,7]
[372402911,1752629444949,-151.0,0.0002185,2]
[372402912,1752629444958,-150.0,0.00021873,2]
[372402913,1752629444967,-151.0,0.00021875,2]
[372402914,1752629444976,-4233.31,0.00021875,2]
[372402915,1752629444986,-1208.091328,0.0002188,2]
[372402916,1752629444995,-1208.091328,0.0002188,2]
[372402917,1752629445004,-151.0,0.0002188,2]
[372402918,1752629445013,-151.0,0.0002188,2]
[372402919,1752629445023,-4456.7443969,0.00021888,7]
[372402920,1752629445032,-254.503224,0.0002189,2]
[372402921,1752629445042,-151.0,0.0002189,2]
[372402922,1752629445051,-150.0,0.00021896,2]
[372402923,1752629445062,-15223.8295908,0.00021897,2]
[372402924,1752629445072,-1126.95992423,0.00021897,2]
[372402925,1752629445082,-966.2,0.00021897,2]
[372402926,1752629445091,-2098.01738083,0.00021899,2]
[372402927,1752629445100,-151.0,0.00021899,2]
[372402928,1752629445110,-182.834226,0.00021899,2]
[372402929,1752629445120,-399650.5923708,0.00021899,2]
[372402930,1752629445130,-20004.97536228,0.00021899,2]
[372402931,1752629445139,-535441.58960606,0.000219,2]
[372402932,1752629445149,-2002.56,0.000219,2]
[372402933,1752629445159,-2000.0,0.000219,2]
[372402934,1752629445168,-151.0,0.000219,2]
[372402935,1752629445177,-1208.091328,0.000219,2]
[372402936,1752629445187,-1208.091328,0.000219,2]
[372402937,1752629445195,-1208.091328,0.000219,2]
[372402938,1752629445205,-1208.091328,0.000219,2]
[372402939,1752629445214,-210.68850447,0.000219,7]
[372402940,1752629445223,-447.80244686,0.000219,7]
[372402941,1752629445233,-151.0,0.000219,2]
[372402942,1752629445242,-151.0,0.000219,2]
[372402943,1752629445251,-151.0,0.000219,2]
[372402944,1752629445261,-151.0,0.000219,2]
[372402945,1752629445270,-150.0,0.00021912,2]
[372402946,1752629445280,-3988.36753857,0.00021916,2]
[372402947,1752629445290,-150.0,0.00021916,2]
[372402948,1752629445299,-150.0,0.00021916,2]
[372402949,1752629445312,-666.0,0.00021916,2]
[372402950,1752629445322,-300.0,0.00021916,2]
[372402951,1752629445331,-297.24362823,0.00021916,2]
[372402952,1752629445341,-300.0,0.00021916,2]
[372402953,1752629445350,-666.0,0.00021916,2]
[372402954,1752629445359,-307.85900886,0.00021916,2]
[372402955,1752629445369,-267078.70646641,0.00021917,2]
[372402956,1752629445379,-600.0,0.00021917,10]
[372402957,1752629445388,-600.0,0.00021917,10]
[372402958,1752629445398,-600.0,0.00021917,10]
[372402959,1752629445408,-600.0,0.00021917,10]
[372402960,1752629445418,-600.0,0.00021917,10]
[372402961,1752629445428,-600.0,0.00021917,10]
[372402962,1752629445447,-600.0,0.00021917,10]
[372402963,1752629445466,-600.0,0.00021917,10]
[372402964,1752629445476,-600.0,0.00021917,10]
[372402965,1752629445487,-600.0,0.00021917,10]
[372402966,1752629445496,-600.0,0.00021917,10]
[372402967,1752629445506,-600.0,0.00021917,10]
[372402968,1752629445516,-600.0,0.00021917,10]
[372402969,1752629445526,-600.0,0.00021917,10]
[372402970,1752629445535,-600.0,0.00021917,10]
[372402971,1752629445545,-600.0,0.00021917,10]
[372402972,1752629445554,-600.0,0.00021917,10]
[372402973,1752629445564,-600.0,0.00021917,10]
[372402974,1752629445574,-600.0,0.00021917,10]
[372402975,1752629445583,-600.0,0.00021917,10]
[372402976,1752629445593,-460.0,0.00021917,2]
[372402977,1752629445602,-1047.91,0.00021917,2]
[372402978,1752629445611,-916.56,0.00021917,2]
[372402979,1752629445620,-460.0,0.00021917,2]
[372402980,1752629445629,-460.0,0.00021917,2]
[372402981,1752629445639,-460.0,0.00021917,2]
[372402982,1752629445648,-552.62,0.00021917,2]
[372402983,1752629445657,-460.0,0.00021917,2]
[372402984,1752629445666,-460.0,0.00021917,2]
[372402985,1752629445676,-460.0,0.00021917,2]
[372402986,1752629445686,-460.0,0.00021917,2]
[372402987,1752629445697,-460.0,0.00021917,2]
[372402988,1752629445707,-570.94,0.00021917,2]
[372402989,1752629445717,-460.0,0.00021917,2]
[372402990,1752629445727,-460.0,0.00021917,2]
[372402991,1752629445737,-460.0,0.00021917,2]
[372402992,1752629445747,-460.0,0.00021917,2]
[372402993,1752629445756,-500.0,0.00021917,2]
[372402994,1752629445766,-500.0,0.00021917,2]
[372402995,1752629445775,-500.0,0.00021917,2]
[372402996,1752629445784,-500.0,0.00021917,2]
[372402997,1752629445794,-500.0,0.00021917,2]
[372402998,1752629445803,-500.0,0.00021917,2]
[372402999,1752629445812,-500.0,0.00021917,2]
[372403000,1752629445821,-500.0,0.00021917,2]
[372403001,1752629445830,-500.0,0.00021917,2]
[372403002,1752629445840,-500.0,0.00021917,2]
[372403003,1752629445850,-500.0,0.00021917,2]
[372403004,1752629445861,-460.0,0.00021917,2]
[372403005,1752629445870,-1058.9,0.00021917,2]
[372403006,1752629445879,-1058.9,0.00021917,2]
[372403007,1752629445889,-567.04,0.00021917,2]
[372403008,1752629445898,-460.0,0.00021917,2]
[372403009,1752629445908,-460.0,0.00021917,2]
[372403010,1752629445917,-460.0,0.00021917,2]
[372403011,1752629445926,-460.0,0.00021917,2]
[372403012,1752629445936,-460.0,0.00021917,2]
[372403013,1752629445945,-460.0,0.00021917,2]
[372403014,1752629445954,-507.56844453,0.00021917,2]
[372403015,1752629445963,-460.0,0.00021917,2]
[372403016,1752629445973,-460.0,0.00021917,2]
[372403017,1752629445982,-460.0,0.00021917,2]
[372403018,1752629445991,-460.0,0.00021917,2]
[372403019,1752629446000,-460.0,0.00021917,2]
[372403020,1752629446010,-460.0,0.00021917,2]
[372403021,1752629446019,-460.0,0.00021917,2]
[372403022,1752629446028,-460.0,0.00021917,2]
[372403023,1752629446037,-460.0,0.00021917,2]
[372403024,1752629446046,-460.0,0.00021917,2]
[372403025,1752629446055,-460.0,0.00021917,2]
[372403026,1752629446065,-460.0,0.00021917,2]
[372403027,1752629446074,-749.46,0.00021917,2]
[372403028,1752629446083,-460.0,0.00021917,2]
[372403029,1752629446092,-460.0,0.00021917,2]
[372403030,1752629446102,-500.0,0.00021917,2]
[372403031,1752629446112,-500.0,0.00021917,2]
[372403032,1752629446121,-500.0,0.00021917,2]
[372403033,1752629446130,-500.0,0.00021917,2]
[372403034,1752629446139,-500.0,0.00021917,2]
[372403035,1752629446148,-500.0,0.00021917,2]
[372403036,1752629446158,-500.0,0.00021917,2]
[372403037,1752629446167,-500.0,0.00021917,2]
[372403038,1752629446176,-505.82878607,0.00021917,2]
[372403039,1752629446185,-460.0,0.00021917,2]
[372403040,1752629446194,-460.0,0.00021917,2]
[372403041,1752629446203,-595.18470485,0.00021917,2]
[372403042,1752629446211,-460.0,0.00021917,2]
[372403043,1752629446218,-460.0,0.00021917,2]
[372403044,1752629446226,-460.0,0.00021917,2]
[372403045,1752629446233,-460.0,0.00021917,2]
[372403046,1752629446241,-460.0,0.00021917,2]
[372403047,1752629446248,-300.0,0.00021917,2]
[372403048,1752629446257,-460.0,0.00021917,2]
[372403049,1752629446264,-460.0,0.00021917,2]
[372403050,1752629446273,-464.48027156,0.00021917,2]
[372403051,1752629446282,-460.0,0.00021917,2]
[372403052,1752629446290,-460.0,0.00021917,2]
[372403053,1752629446300,-1000.0,0.00021917,2]
[372403054,1752629446312,-460.0,0.00021917,2]
[372403055,1752629446322,-460.0,0.00021917,2]
[372403056,1752629446331,-460.0,0.00021917,2]
[372403057,1752629446340,-460.0,0.00021917,2]
[372403058,1752629446350,-460.0,0.00021917,2]
[372403059,1752629446360,-460.0,0.00021917,2]
[372403060,1752629446369,-460.0,0.00021917,2]
[372403061,1752629446382,-460.0,0.00021917,2]
[372403063,1752629446391,-460.0,0.00021917,2]
[372403065,1752629446401,-460.0,0.00021917,2]
[372403067,1752629446410,-460.0,0.00021917,2]
[372403068,1752629446419,-460.0,0.00021917,2]
[372403069,1752629446430,-460.0,0.00021917,2]
[372403070,1752629446440,-492.11,0.00021917,2]
[372403071,1752629446449,-460.0,0.00021917,2]
[372403072,1752629446458,-166.727682,0.00021917,2]
[372403073,1752629446470,-521.50418306,0.00021917,2]
[372403074,1752629446480,-179.76775586,0.00021917,2]
[372403075,1752629446490,-460.0,0.00021917,2]
[372403076,1752629446499,-460.0,0.00021917,2]
[372403077,1752629446510,-460.0,0.00021917,2]
[372403078,1752629446520,-353.1635471,0.00021917,2]
[372403079,1752629446530,-460.0,0.00021917,2]
[372403080,1752629446539,-536.02,0.00021917,2]
[372403081,1752629446549,-460.0,0.00021917,2]
[372403082,1752629446558,-460.0,0.00021917,2]
[372403083,1752629446567,-460.0,0.00021917,2]
[372403084,1752629446576,-460.0,0.00021917,2]
[372403085,1752629446586,-460.0,0.00021917,2]
[372403086,1752629446595,-460.0,0.00021917,2]
[372403087,1752629446604,-460.0,0.00021917,2]
[372403088,1752629446613,-1210.41,0.00021917,2]
[372403089,1752629446624,-460.0,0.00021917,2]
[372403090,1752629446633,-460.0,0.00021917,2]
[372403091,1752629446643,-460.0,0.00021917,2]
[372403092,1752629446652,-460.0,0.00021917,2]
[372403093,1752629446662,-842.97,0.00021917,2]
[372403094,1752629446671,-460.0,0.00021917,2]
[372403095,1752629446680,-460.0,0.00021917,2]
[372403096,1752629446689,-764.48,0.00021917,2]
[372403097,1752629446699,-460.0,0.00021917,2]
[372403098,1752629446708,-460.0,0.00021917,2]
[372403099,1752629446718,-460.0,0.00021917,2]
[372403100,1752629446728,-460.0,0.00021917,2]
[372403101,1752629446738,-460.0,0.00021917,2]
[372403102,1752629446747,-460.0,0.00021917,2]
[372403103,1752629446756,-460.0,0.00021917,2]
[372403104,1752629446765,-460.0,0.00021917,2]
[372403105,1752629446774,-460.0,0.00021917,2]
[372403106,1752629446783,-1218.04,0.00021917,2]
[372403107,1752629446793,-460.0,0.00021917,2]
[372403108,1752629446802,-500.0,0.00021917,2]
[372403109,1752629446812,-500.0,0.00021917,2]
[372403110,1752629446821,-500.0,0.00021917,2]
[372403111,1752629446830,-500.0,0.00021917,2]
[372403112,1752629446840,-500.0,0.00021917,2]
[372403113,1752629446849,-500.0,0.00021917,2]
[372403114,1752629446859,-500.0,0.00021917,2]
[372403115,1752629446869,-500.0,0.00021917,2]
[372403116,1752629446878,-500.0,0.00021917,2]
[372403117,1752629446887,-217.6049618,0.00021917,2]
[372403118,1752629446897,-460.0,0.00021917,2]
[372403119,1752629446906,-330.8220693,0.00021917,2]
[372403120,1752629446916,-460.0,0.00021917,2]
[372403121,1752629446925,-460.0,0.00021917,2]
[372403122,1752629447209,-460.0,0.00021917,2]
[372403123,1752629447220,-460.0,0.00021917,2]
[372403124,1752629447231,-460.0,0.00021917,2]
[372403125,1752629447241,-460.0,0.00021917,2]
[372403126,1752629447250,-153.79872331,0.00021917,2]
[372403127,1752629447262,-460.0,0.00021917,2]
[372403128,1752629447273,-460.0,0.00021917,2]
[372403129,1752629447283,-460.0,0.00021917,2]
[372403130,1752629447293,-460.0,0.00021917,2]
[372403131,1752629447305,-460.0,0.00021917,2]
[372403132,1752629447315,-460.0,0.00021917,2]
[372403133,1752629447324,-460.0,0.00021917,2]
[372403134,1752629447334,-449.10022364,0.00021917,2]
[372403135,1752629447344,-540.83745567,0.00021917,2]
[372403136,1752629447354,-901.85,0.00021917,2]
[372403137,1752629447363,-460.0,0.00021917,2]
[372403138,1752629447373,-460.0,0.00021917,2]
[372403139,1752629447383,-582.37,0.00021917,2]
[372403140,1752629447393,-460.0,0.00021917,2]
[372403141,1752629447403,-460.0,0.00021917,2]
[372403142,1752629447414,-1194.88,0.00021917,2]
[372403143,1752629447424,-460.0,0.00021917,2]
[372403144,1752629447433,-718.71,0.00021917,2]
[372403145,1752629447443,-503.84,0.00021917,2]
[372403146,1752629447453,-460.0,0.00021917,2]
[372403147,1752629447463,-460.0,0.00021917,2]
[372403148,1752629447472,-460.0,0.00021917,2]
[372403149,1752629447482,-460.0,0.00021917,2]
[372403150,1752629447492,-576.34,0.00021917,2]
[372403151,1752629447501,-474.17,0.00021917,2]
[372403152,1752629447511,-460.0,0.00021917,2]
[372403153,1752629447521,-460.0,0.00021917,2]
[372403154,1752629447531,-460.0,0.00021917,2]
[372403155,1752629447540,-881.3,0.00021917,2]
[372403156,1752629447550,-638.27,0.00021917,2]
[372403157,1752629447559,-460.0,0.00021917,2]
[372403158,1752629447569,-659.18,0.00021917,2]
[372403159,1752629447579,-405.19486096,0.00021917,2]
[372403160,1752629447589,-460.0,0.00021917,2]
[372403161,1752629447598,-460.0,0.00021917,2]
[372403162,1752629447608,-460.0,0.00021917,2]
[372403163,1752629447617,-460.0,0.00021917,2]
[372403164,1752629447626,-922.78,0.00021917,2]
[372403165,1752629447636,-1179.44,0.00021917,2]
[372403166,1752629447646,-460.0,0.00021917,2]
[372403167,1752629447655,-460.0,0.00021917,2]
[372403168,1752629447666,-555.98,0.00021917,2]
[372403169,1752629447676,-460.0,0.00021917,2]
[372403170,1752629447685,-460.0,0.00021917,2]
[372403171,1752629447694,-460.0,0.00021917,2]
[372403172,1752629447704,-460.0,0.00021917,2]
[372403173,1752629447714,-785.9,0.00021917,2]
[372403174,1752629447723,-460.0,0.00021917,2]
[372403175,1752629447733,-691.88,0.00021917,2]
[372403176,1752629447742,-460.0,0.00021917,2]
[372403177,1752629447752,-460.0,0.00021917,2]
[372403178,1752629447762,-460.0,0.00021917,2]
[372403179,1752629447771,-460.0,0.00021917,2]
[372403180,1752629447780,-460.0,0.00021917,2]
[372403181,1752629447789,-460.0,0.00021917,2]
[372403182,1752629447799,-566.15,0.00021917,2]
[372403183,1752629447808,-460.0,0.00021917,2]
[372403184,1752629447818,-460.0,0.00021917,2]
[372403185,1752629447828,-460.0,0.00021917,2]
[372403186,1752629447837,-601.91525373,0.00021917,2]
[372403187,1752629447846,-1191.12,0.00021917,2]
[372403188,1752629447855,-460.0,0.00021917,2]
[372403189,1752629447865,-460.0,0.00021917,2]
[372403190,1752629447874,-460.0,0.00021917,2]
[372403191,1752629447884,-460.0,0.00021917,2]
[372403192,1752629447893,-460.0,0.00021917,2]
[372403193,1752629447902,-460.0,0.00021917,2]
[372403194,1752629447912,-460.0,0.00021917,2]
[372403195,1752629447921,-460.0,0.00021917,2]
[372403196,1752629447931,-462.91,0.00021917,2]
[372403197,1752629447941,-532.86710953,0.00021917,2]
[372403198,1752629447950,-460.0,0.00021917,2]
[372403199,1752629447960,-466.34179256,0.00021917,2]
[372403200,1752629447969,-460.0,0.00021917,2]
[372403201,1752629447978,-460.0,0.00021917,2]
[372403202,1752629447988,-460.0,0.00021917,2]
[372403203,1752629447997,-460.0,0.00021917,2]
[372403204,1752629448007,-460.0,0.00021917,2]
[372403205,1752629448016,-460.0,0.00021917,2]
[372403206,1752629448026,-627.74,0.00021917,2]
[372403207,1752629448036,-460.0,0.00021917,2]
[372403208,1752629448046,-460.0,0.00021917,2]
[372403209,1752629448056,-599.47996488,0.00021917,2]
[372403210,1752629448065,-602.0,0.00021917,2]
[372403211,1752629448075,-460.0,0.00021917,2]
[372403212,1752629448085,-460.0,0.00021917,2]
[372403213,1752629448094,-460.0,0.00021917,2]
[372403214,1752629448104,-460.0,0.00021917,2]
[372403215,1752629448114,-460.0,0.00021917,2]
[372403216,1752629448123,-460.0,0.00021917,2]
[372403217,1752629448133,-664.29,0.00021917,2]
[372403218,1752629448143,-502.17,0.00021917,2]
[372403219,1752629448153,-460.0,0.00021917,2]
[372403220,1752629448163,-460.0,0.00021917,2]
[372403221,1752629448174,-460.0,0.00021917,2]
[372403222,1752629448183,-460.0,0.00021917,2]
[372403223,1752629448193,-1031.78,0.00021917,2]
[372403224,1752629448203,-654.11,0.00021917,2]
[372403225,1752629448212,-1184.21,0.00021917,2]
[372403226,1752629448222,-460.0,0.00021917,2]
[372403227,1752629448232,-460.0,0.00021917,2]
[372403228,1752629448241,-460.0,0.00021917,2]
[372403229,1752629448251,-460.0,0.00021917,2]
[372403230,1752629448260,-601.31,0.00021917,2]
[372403231,1752629448270,-839.76,0.00021917,2]
[372403232,1752629448280,-460.0,0.00021917,2]
[372403233,1752629448294,-460.0,0.00021917,2]
[372403234,1752629448310,-460.0,0.00021917,2]
[372403235,1752629448320,-460.0,0.00021917,2]
[372403236,1752629448329,-597.9,0.00021917,2]
[372403237,1752629448339,-460.0,0.00021917,2]
[372403238,1752629448350,-460.0,0.00021917,2]
[372403239,1752629448360,-460.0,0.00021917,2]
[372403240,1752629448370,-1432.82,0.00021917,2]
[372403241,1752629448380,-460.0,0.00021917,2]
[372403242,1752629448390,-460.0,0.00021917,2]
[372403243,1752629448399,-460.0,0.00021917,2]
[372403244,1752629448408,-460.0,0.00021917,2]
[372403245,1752629448417,-794.5,0.00021917,2]
[372403246,1752629448426,-460.0,0.00021917,2]
[372403247,1752629448436,-810.94,0.00021917,2]
[372403248,1752629448446,-1330.37,0.00021917,2]
[372403249,1752629448455,-460.0,0.00021917,2]
[372403250,1752629448465,-460.0,0.00021917,2]
[372403251,1752629448474,-460.0,0.00021917,2]
[372403252,1752629448484,-460.0,0.00021917,2]
[372403253,1752629448493,-460.0,0.00021917,2]
[372403254,1752629448502,-796.93,0.00021917,2]
[372403255,1752629448511,-460.0,0.00021917,2]
[372403256,1752629448521,-942.04,0.00021917,2]
[372403257,1752629448530,-460.0,0.00021917,2]
[372403258,1752629448539,-460.0,0.00021917,2]
[372403259,1752629448549,-804.56,0.00021917,2]
[372403260,1752629448558,-460.0,0.00021917,2]
[372403261,1752629448568,-460.0,0.00021917,2]
[372403262,1752629448577,-460.0,0.00021917,2]
[372403263,1752629448586,-460.0,0.00021917,2]
[372403264,1752629448595,-474.7533639,0.00021917,2]